bitfinex/quotes_ETHUSD_20250130
["timestamp","ask_amount","ask_price","bid_price","bid_amount"]
[1738241780383,0.62638222,3223.1,3223.0,0.0493526]
[1738241780593,3.72898222,3223.1,3223.0,0.0493526]
[1738241781512,0.62638222,3223.1,3223.0,0.0493526]
[1738241781661,3.10252,3223.2,3223.0,0.0493526]
[1738241782864,6.20976,3223.4,3223.0,0.0493526]
[1738241783075,3.10736,3223.4,3223.0,0.0493526]
[1738241783588,3.10736,3223.4,3223.0,0.89857386]
[1738241783792,0.005,3223.4,3223.1,0.263]
[1738241784015,0.005,3223.4,3223.2,0.04895967]
[1738241786612,3.86961,3223.3,3222.9,5.34]
[1738241786912,3.10265,3223.1,3223.0,0.04902135]
[1738241788595,0.005,3223.4,3223.0,0.85092349]
[1738241789313,3.10732,3223.4,3223.0,0.85092349]
[1738241789482,3.10732,3223.4,3223.0,6.19092349]
[1738241791530,3.10246,3223.3,3223.0,5.92792349]
[1738241791703,3.10241,3223.3,3223.0,5.38902135]
[1738241792029,0.005,3223.4,3223.0,5.38902135]
[1738241792250,3.10259,3223.2,3223.0,5.38902135]
[1738241796333,3.10241,3223.3,3223.0,5.38902135]
[1738241796660,3.8908,3223.1,3223.0,5.38902135]
[1738241797236,3.1026,3223.1,3223.0,5.38902135]
[1738241801459,3.1026,3223.1,3223.0,0.04902135]
[1738241801832,3.10278,3223.0,3222.7,5.34]
[1738241802036,3.10278,3223.0,3222.8,0.0489125]
[1738241802218,3.10279,3222.9,3222.7,5.34]
[1738241802555,3.10279,3222.9,3222.8,0.04892562]
[1738241803212,3.10279,3222.9,3222.7,5.34]
[1738241803416,3.10289,3222.8,3222.7,5.34]
[1738241804221,3.10278,3223.0,3222.7,5.34]
[1738241804421,3.10285,3222.9,3222.7,5.34]
[1738241805164,3.10289,3222.8,3222.7,5.34]
[1738241805331,3.86459,3222.8,3222.7,5.34]
[1738241810177,0.7545,3223.1,3222.7,5.34]
[1738241810379,3.10256,3223.2,3222.7,5.34]
[1738241810675,6.20515,3223.2,3222.7,5.34]
[1738241810880,6.20515,3223.2,3222.8,0.04898136]
[1738241811093,3.10261,3223.1,3222.8,0.04898136]
[1738241811243,3.10261,3223.1,3222.7,5.34]
[1738241811444,3.10261,3223.1,3222.8,0.28975284]
[1738241811644,3.10261,3223.1,3222.9,0.04895051]
[1738241811842,3.10256,3223.2,3222.9,0.04895051]
[1738241812092,3.55652391,3223.2,3222.9,0.04895051]
[1738241812275,3.10269,3223.0,3222.9,0.04895051]
[1738241812466,3.91529,3223.0,3222.9,0.04895051]
[1738241813291,3.10281,3222.9,3222.7,5.34]
[1738241813490,6.20569,3222.9,3222.7,5.34]
[1738241813647,3.10281,3222.9,3222.7,5.34]
[1738241814291,3.10289,3222.8,3222.7,5.34]
[1738241820095,3.89257,3223.4,3222.8,3.10287]
[1738241820302,3.10737,3223.4,3222.8,3.13382489]
[1738241820483,3.10737,3223.4,3223.0,0.263]
[1738241821868,3.10242,3223.3,3223.0,0.263]
[1738241822292,0.005,3223.4,3223.1,0.28991744]
[1738241823406,3.10731,3223.4,3223.1,0.36556874]
[1738241823562,0.005,3223.4,3223.1,0.36556874]
[1738241825100,0.005,3223.4,3223.1,5.70556874]
[1738241825604,0.005,3223.4,3223.3,3.10241]
[1738241825756,0.005,3223.4,3223.3,3.36541]
[1738241825956,0.005,3223.4,3223.3,5.80545022]
[1738241826876,0.005,3223.4,3223.3,5.83646844]
[1738241827303,0.005,3223.4,3223.3,11.17646844]
[1738241827473,0.005,3223.4,3223.3,11.14545022]
[1738241828218,0.005,3223.4,3223.3,11.37705042]
[1738241830975,0.005,3223.4,3223.3,20.18705042]
[1738241838583,0.005,3223.4,3223.3,20.73705042]
[1738241838789,0.005,3223.4,3223.3,23.73705042]
[1738241840070,0.005,3223.4,3223.3,24.04785042]
[1738241849271,0.005,3223.4,3223.3,23.49785042]
[1738241850787,0.005,3223.4,3223.3,20.18705042]
[1738241850979,0.7934,3223.4,3223.3,14.43029293]
[1738241851320,0.7934,3223.4,3223.3,17.53270293]
[1738241851474,0.7934,3223.4,3223.3,14.43029293]
[1738241851676,0.7934,3223.4,3223.3,5.62029293]
[1738241852482,3.89571,3223.4,3223.3,5.62029293]
[1738241852643,0.7934,3223.4,3223.3,5.62029293]
[1738241853211,0.7934,3223.4,3223.3,5.38869273]
[1738241855406,0.7934,3223.4,3223.3,5.61986867]
[1738241858043,0.005,3223.4,3223.3,5.61986867]
[1738241858242,0.005,3223.4,3223.3,8.75329951]
[1738241858446,0.005,3223.4,3223.3,10.22715423]
[1738241858647,0.005,3223.4,3223.3,19.03715423]
[1738241858812,0.005,3223.4,3223.3,22.30015423]
[1738241860648,0.005,3223.4,3223.3,22.61095423]
[1738241861415,0.005,3223.4,3223.3,22.03715423]
[1738241861821,0.005,3223.4,3223.3,19.03715423]
[1738241862624,0.005,3223.4,3223.3,17.53227867]
[1738241882014,0.005,3223.4,3223.3,17.79527867]
[1738241884940,0.005,3223.4,3223.3,17.53227867]
[1738241885586,0.005,3223.4,3223.3,5.61986867]
[1738241886257,0.005,3223.4,3223.3,8.72227867]
[1738241887352,0.005,3223.4,3223.3,10.22405215]
[1738241888106,0.005,3223.4,3223.3,9.99287621]
[1738241888591,0.005,3223.4,3223.3,10.22424545]
[1738241890599,0.005,3223.4,3223.3,19.03424545]
[1738241891194,0.005,3223.4,3223.3,19.34504545]
[1738241896688,0.005,3223.4,3223.3,19.03482558]
[1738241897503,0.005,3223.4,3223.3,15.93241558]
[1738241898168,0.7731,3223.4,3223.3,14.43006197]
[1738241901669,0.7731,3223.4,3223.3,14.19869273]
[1738241902314,0.7731,3223.4,3223.3,5.38869273]
[1738241902522,4.27958862,3223.4,3223.3,5.38869273]
[1738241914429,4.27958862,3223.4,3223.3,0.04869273]
[1738241914795,0.8038,3223.0,3222.9,5.34]
[1738241916029,0.8038,3223.0,3222.9,5.38560573]
[1738241916030,3.90649,3223.0,3222.9,5.38560573]
[1738241917408,0.8038,3223.0,3222.9,5.38560573]
[1738241920655,3.86643,3223.2,3222.9,5.38560573]
[1738241920855,0.7689,3223.4,3222.9,5.38560573]
[1738241921030,3.10243,3223.3,3222.9,5.38560573]
[1738241921828,0.7689,3223.4,3222.9,5.38560573]
[1738241922034,0.7689,3223.4,3222.9,8.48837573]
[1738241922916,0.7689,3223.4,3223.0,1.50312266]
[1738241923117,0.7689,3223.4,3223.1,0.04554405]
[1738241923317,0.7689,3223.4,3223.0,4.60581266]
[1738241923555,0.7689,3223.4,3223.1,0.04554405]
[1738241924058,0.7689,3223.4,3223.0,4.60581266]
[1738241924214,0.7689,3223.4,3223.2,0.0455296]
[1738241924411,0.7689,3223.4,3223.1,0.04556045]
[1738241924636,0.7689,3223.4,3223.3,0.04549877]
[1738241924835,0.7689,3223.4,3223.2,0.0455296]
[1738241925014,0.7689,3223.4,3223.3,0.04549877]
[1738241925431,0.7689,3223.4,3223.0,1.50312266]
[1738241925649,0.7689,3223.4,3223.3,0.04549877]
[1738241925852,3.87121,3223.4,3223.0,1.50312266]
[1738241926040,3.87121,3223.4,3223.3,0.04549877]
[1738241926246,3.87121,3223.4,3223.0,6.84312266]
[1738241926559,3.87121,3223.4,3223.0,7.07422114]
[1738241926753,3.87121,3223.4,3223.1,0.04556045]
[1738241927256,3.87121,3223.4,3223.0,7.07422114]
[1738241927453,3.87121,3223.4,3223.2,0.0455296]
[1738241927707,3.87121,3223.4,3223.1,0.04556045]
[1738241927964,3.87121,3223.4,3223.2,0.0455296]
[1738241928162,6.97361,3223.4,3223.2,0.0455296]
[1738241928462,6.97361,3223.4,3223.0,5.57109848]
[1738241928463,3.10241,3223.3,3223.1,0.23109848]
[1738241928760,0.7689,3223.4,3223.1,0.23109848]
[1738241928921,0.005,3223.4,3223.1,0.49409848]
[1738241929665,0.8134,3223.3,3223.0,5.34]
[1738241931133,0.8134,3223.3,3223.1,0.04556045]
[1738241931333,3.1025,3223.2,3223.0,5.34]
[1738241931552,3.10268,3223.1,3222.6,5.34]
[1738241931739,0.807,3223.0,3222.6,8.44306]
[1738241931938,0.807,3223.0,3222.6,9.94618266]
[1738241932169,3.10268,3223.1,3222.6,9.94618266]
[1738241932375,3.9123,3223.2,3222.6,9.94618266]
[1738241932536,3.9123,3223.2,3222.7,0.23178916]
[1738241933944,3.9123,3223.2,3222.8,0.23178916]
[1738241934143,3.88055125,3223.1,3222.8,0.23178916]
[1738241935486,0.8098,3223.2,3222.8,1.73491182]
[1738241935985,0.8098,3223.2,3222.9,0.23178916]
[1738241935986,3.1026,3223.1,3222.9,0.23178916]
[1738241936200,0.8098,3223.2,3222.9,0.23178916]
[1738241936201,3.10269,3223.0,3222.9,0.23178916]
[1738241940400,3.10269,3223.0,3222.6,5.34]
[1738241940775,3.91233,3223.2,3222.6,5.34]
[1738241940975,3.1026,3223.1,3222.9,0.23176357]
[1738241941200,3.10269,3223.0,3222.9,0.23176357]
[1738241943949,0.701493,3223.1,3222.9,0.23176357]
[1738241944152,3.804133,3223.1,3222.9,0.23176357]
[1738241944525,3.804133,3223.1,3222.6,5.34]
[1738241944726,3.10264,3223.1,3222.6,5.34]
[1738241945754,3.10264,3223.1,3222.7,0.04583466]
[1738241946328,3.10264,3223.1,3222.7,0.27761382]
[1738241946958,3.10264,3223.1,3222.7,5.61761382]
[1738241947158,3.91233,3223.2,3222.9,5.0]
[1738241947373,4.304063,3223.2,3223.0,0.04575522]
[1738241948286,3.91233,3223.2,3223.0,0.04575522]
[1738241951290,3.10242,3223.3,3223.0,0.04575522]
[1738241952593,0.7867,3223.4,3223.0,0.04575522]
[1738241952949,0.005,3223.4,3223.0,6.88887788]
[1738241953142,0.005,3223.4,3223.1,4.86473379]
[1738241953344,0.005,3223.4,3223.2,0.0456837]
[1738241954467,0.005,3223.4,3223.3,0.23157367]
[1738241954909,0.005,3223.4,3223.3,0.27722653]
[1738241957561,0.005,3223.4,3223.3,8.75065947]
[1738241957846,0.005,3223.4,3223.3,10.34456474]
[1738241961996,0.005,3223.4,3223.3,7.24215474]
[1738241962324,3.10731,3223.4,3223.3,5.61722653]
[1738241962624,3.89181,3223.4,3223.3,5.61722653]
[1738241963578,3.89181,3223.4,3223.3,5.38565286]
[1738241965700,3.89181,3223.4,3223.3,0.04565286]
[1738241966037,0.7895,3223.4,3222.9,5.0]
[1738241966338,3.10266,3223.1,3222.9,5.0]
[1738241966689,0.8329,3223.0,3222.9,5.0]
[1738241972191,3.93559,3223.0,3222.9,5.0]
[1738241974280,0.8329,3223.0,3222.9,5.0]
[1738241975384,2.94891,3223.1,3222.9,5.0]
[1738241975793,2.94891,3223.1,3223.0,0.04553952]
[1738241978070,3.5929671,3223.1,3223.0,0.04553952]
[1738241978506,4.3873671,3223.1,3223.0,0.04553952]
[1738241982610,3.74331,3223.1,3223.0,0.04553952]
[1738241984499,6.20492,3223.3,3223.0,0.04553952]
[1738241984699,3.10244,3223.3,3223.0,0.04553952]
[1738241984902,6.20494,3223.3,3223.0,0.04553952]
[1738241985913,6.20492,3223.3,3223.0,0.04553952]
[1738241986113,3.10252,3223.2,3223.0,0.04553952]
[1738241987339,3.1026,3223.1,3223.0,0.04553952]
[1738241987902,4.48351,3223.1,3223.0,0.04553952]
[1738241990645,4.49851,3223.1,3223.0,0.04553952]
[1738241991954,3.11019,3223.0,3222.9,5.0]
[1738241992974,3.10254,3223.2,3222.9,5.0]
[1738241993266,3.10254,3223.2,3223.0,0.04572318]
[1738241993751,3.1026,3223.1,3223.0,0.04572318]
[1738241993957,3.884,3223.1,3223.0,0.04572318]
[1738241994167,3.884,3223.1,3222.9,5.0]
[1738241994168,3.10269,3223.0,3222.9,5.0]
[1738241994535,3.10269,3223.0,3222.9,5.04573107]
[1738242002625,6.91629,3223.0,3222.9,5.04573107]
[1738242002853,7.99636203,3223.0,3222.9,5.04573107]
[1738242003140,8.54636203,3223.0,3222.9,5.04573107]
[1738242003340,8.54636203,3223.0,3221.6,0.7679]
[1738242003341,0.8077,3222.1,3221.6,0.7679]
[1738242003565,0.8077,3222.1,3221.4,0.812]
[1738242003783,3.10407,3221.6,3221.4,0.812]
[1738242004182,3.10387,3221.8,3221.4,0.812]
[1738242004384,3.1039,3221.8,3221.4,0.812]
[1738242004587,3.10366,3222.0,3221.4,0.812]
[1738242004748,3.91128,3222.1,3221.5,3.33603296]
[1738242005143,3.10358,3222.1,3221.5,3.33603296]
[1738242005376,6.98543,3222.4,3221.7,3.10394]
[1738242005684,3.62924461,3222.5,3221.9,3.1037]
[1738242005867,6.73249461,3222.5,3222.1,0.8284]
[1738242006067,3.86234,3222.8,3222.1,0.8284]
[1738242006271,3.10314,3222.6,3222.1,0.8284]
[1738242006905,3.10314,3222.6,3222.1,3.93195]
[1738242007570,0.6329106,3222.7,3222.2,3.10344]
[1738242007765,3.7359106,3222.7,3222.4,0.7713]
[1738242007971,3.10286,3222.9,3222.4,0.7713]
[1738242008480,3.10286,3222.9,3222.4,3.87456]
[1738242008683,3.10266,3223.1,3222.5,3.87441]
[1738242009058,3.1027,3223.0,3222.5,3.87441]
[1738242009275,3.1027,3223.0,3222.5,4.30147974]
[1738242009873,3.1027,3223.0,3222.6,0.7713]
[1738242011183,3.10261,3223.1,3222.6,9.21438]
[1738242011561,3.10261,3223.1,3222.6,6.1113]
[1738242011894,3.10282,3222.9,3222.6,6.1113]
[1738242012097,3.10282,3222.9,3222.6,6.83113255]
[1738242012298,3.1029,3222.8,3222.6,6.1113]
[1738242013907,3.10279,3223.0,3222.6,6.1113]
[1738242014259,3.1028,3222.9,3222.6,6.1113]
[1738242015877,3.1029,3222.8,3222.6,6.1113]
[1738242016604,3.10298,3222.7,3222.6,5.34]
[1738242017711,3.10298,3222.7,3222.6,5.37998281]
[1738242018877,3.1029,3222.8,3222.6,5.37998281]
[1738242020766,3.1028,3222.9,3222.6,5.37998281]
[1738242020966,3.10289,3222.8,3222.6,5.37998281]
[1738242022920,3.10291,3222.8,3222.6,5.37998281]
[1738242023134,3.1028,3222.9,3222.6,5.37998281]
[1738242023434,3.1028,3222.9,3222.7,0.7796]
[1738242023801,3.1028,3222.9,3222.8,0.03970464]
[1738242024009,3.1028,3222.9,3222.7,0.7796]
[1738242024340,3.10262,3223.1,3222.8,0.03970464]
[1738242024341,3.10272,3223.0,3222.8,0.03970464]
[1738242024493,0.63139257,3223.3,3222.8,0.03970464]
[1738242024697,3.1074,3223.4,3222.9,0.792]
[1738242024899,3.1074,3223.4,3223.2,0.792]
[1738242024900,0.005,3223.4,3223.2,0.792]
[1738242025126,0.005,3223.4,3223.3,3.10241]
[1738242025431,0.005,3223.4,3223.2,6.99695]
[1738242025661,0.005,3223.4,3223.2,3.89445]
[1738242025837,0.005,3223.4,3223.3,0.03955043]
[1738242025989,0.005,3223.4,3223.2,5.34]
[1738242026189,3.10241,3223.3,3223.2,5.34]
[1738242027733,0.005,3223.4,3223.2,5.34]
[1738242027734,3.10733,3223.4,3223.2,5.34]
[1738242029952,3.10241,3223.3,3223.2,5.34]
[1738242030250,3.10733,3223.4,3223.2,5.34]
[1738242030752,6.20972,3223.4,3223.2,5.34]
[1738242030917,3.10733,3223.4,3223.2,5.34]
[1738242032243,3.10241,3223.3,3223.2,5.34]
[1738242033935,3.804964,3223.3,3223.2,5.34]
[1738242035433,3.10241,3223.3,3223.2,5.34]
[1738242039124,3.10241,3223.3,3223.2,5.37791698]
[1738242041068,3.10241,3223.3,3223.2,0.03791698]
[1738242041376,3.10308,3222.6,3222.5,5.34]
[1738242042562,3.10356,3222.1,3222.0,0.7644]
[1738242042765,3.10356,3222.1,3222.0,6.1044]
[1738242043070,3.10356,3222.1,3222.0,5.34]
[1738242043763,3.10355,3222.2,3222.0,5.34]
[1738242044170,3.10356,3222.1,3222.0,5.34]
[1738242044481,3.10356,3222.1,3222.0,5.57163209]
[1738242045040,3.724271,3222.1,3222.0,5.57163209]
[1738242045572,4.488671,3222.1,3222.0,5.57163209]
[1738242045769,4.503671,3222.1,3222.0,0.23163209]
[1738242045957,3.10425,3221.4,3221.1,6.1019]
[1738242046390,3.10422,3221.5,3221.1,6.1019]
[1738242047078,3.10422,3221.5,3221.2,0.23146263]
[1738242048858,3.10422,3221.5,3221.3,0.23146263]
[1738242049457,3.10424,3221.4,3221.3,0.23146263]
[1738242050379,3.10435,3221.3,3221.1,5.34]
[1738242051175,3.10443,3221.2,3221.1,5.34]
[1738242051486,3.10443,3221.2,3220.7,0.7548]
[1738242052299,3.10475,3220.9,3220.7,0.7548]
[1738242052444,3.10492,3220.7,3220.5,5.34]
[1738242053392,6.20952,3220.9,3220.5,5.34]
[1738242053687,3.10483,3220.8,3220.5,5.34]
[1738242053891,3.10472,3220.9,3220.5,5.34]
[1738242054185,3.10472,3220.9,3220.6,0.03580266]
[1738242056265,3.91086,3221.1,3220.6,0.03580266]
[1738242056662,3.10468,3221.0,3220.6,0.03580266]
[1738242057268,3.10438,3221.3,3220.6,7.31482969]
[1738242057451,3.10438,3221.3,3220.8,3.1048]
[1738242057674,3.10438,3221.3,3220.7,0.84192894]
[1738242057878,3.10458,3221.1,3220.9,0.03626717]
[1738242058073,3.10487,3220.8,3220.5,6.1456]
[1738242058747,3.10473,3220.9,3220.5,6.1456]
[1738242059518,3.10483,3220.8,3220.5,6.1456]
[1738242059734,3.10493,3220.7,3220.5,5.34]
[1738242059878,3.10483,3220.8,3220.5,5.34]
[1738242061217,3.10491,3220.7,3220.5,5.34]
[1738242061419,3.91324,3220.9,3220.5,5.34]
[1738242061918,3.10448,3221.2,3220.6,2.93348376]
[1738242062132,3.10462,3221.0,3220.7,0.7717]
[1738242062475,3.10462,3221.0,3220.5,6.1117]
[1738242062684,3.10497,3220.7,3220.5,6.1117]
[1738242062912,3.10481,3220.8,3220.5,6.1117]
[1738242063616,3.10492,3220.7,3220.5,6.1117]
[1738242063985,3.10483,3220.8,3220.5,6.1117]
[1738242064181,3.10483,3220.8,3220.5,5.34]
[1738242064386,3.105,3220.7,3220.5,5.34]
[1738242064590,3.10501,3220.6,3220.5,5.34]
[1738242064811,3.10488,3220.8,3220.5,5.34]
[1738242065198,3.10493,3220.7,3220.5,5.34]
[1738242067647,3.10496,3220.7,3220.5,5.34]
[1738242067944,3.10501,3220.6,3220.5,5.34]
[1738242068908,3.10486,3220.8,3220.5,5.34]
[1738242069144,3.10486,3220.8,3220.5,5.37641039]
[1738242069438,3.10497,3220.7,3220.5,5.37641039]
[1738242069847,3.10501,3220.6,3220.5,5.37641039]
[1738242071141,3.87178,3220.9,3220.5,5.37641039]
[1738242071444,3.10488,3220.8,3220.5,5.37641039]
[1738242073541,0.767,3220.9,3220.5,5.37641039]
[1738242073542,3.10497,3220.7,3220.5,5.37641039]
[1738242074659,3.10448,3221.2,3220.6,3.73188376]
[1738242074866,3.10447,3221.2,3220.6,6.87336164]
[1738242075156,3.10453,3221.1,3220.6,6.87336164]
[1738242075658,3.10453,3221.1,3220.7,0.52076548]
[1738242075958,3.10447,3221.2,3220.7,3.66212247]
[1738242076431,3.10447,3221.2,3220.7,0.55721247]
[1738242076843,6.20899,3221.2,3220.8,0.28931738]
[1738242077039,0.68215653,3221.2,3220.8,0.55718159]
[1738242077241,3.10472,3220.9,3220.8,0.55718159]
[1738242077952,3.10472,3220.9,3220.8,0.26786421]
[1738242078672,3.10472,3220.9,3220.8,0.03641611]
[1738242078830,3.10472,3220.9,3220.6,0.2314481]
[1738242079163,3.10472,3220.9,3220.8,0.03637348]
[1738242079370,3.10472,3220.9,3220.7,0.03640437]
[1738242079577,3.10472,3220.9,3220.8,0.03637348]
[1738242079961,3.10484,3220.8,3220.5,5.34]
[1738242082876,3.10491,3220.7,3220.6,0.23195717]
[1738242084049,3.10491,3220.7,3220.6,0.26839243]
[1738242084600,3.725885,3220.7,3220.6,0.26839243]
[1738242085446,3.10484,3220.8,3220.6,0.03643526]
[1738242085694,6.10467,3221.0,3220.6,0.80403526]
[1738242085893,3.10467,3221.0,3220.6,0.80403526]
[1738242086053,3.10474,3220.9,3220.6,0.80403526]
[1738242086253,6.20952,3220.9,3220.6,0.80403526]
[1738242086454,3.10474,3220.9,3220.6,0.80403526]
[1738242086794,6.20954,3220.9,3220.6,0.80403526]
[1738242086958,3.10489,3220.8,3220.7,0.23193897]
[1738242087286,3.10489,3220.8,3220.7,0.26840234]
[1738242088095,3.10489,3220.8,3220.7,0.03646337]
[1738242088306,3.10489,3220.8,3220.5,5.34]
[1738242088470,3.10489,3220.8,3220.7,0.03646337]
[1738242088671,3.10489,3220.8,3220.5,5.34]
[1738242088873,3.90699,3220.8,3220.7,0.03646337]
[1738242089084,3.90699,3220.8,3220.5,5.34]
[1738242089085,3.10496,3220.7,3220.5,5.34]
[1738242089680,3.10496,3220.7,3220.6,0.23193591]
[1738242091272,6.20994,3220.7,3220.6,0.23193591]
[1738242091976,3.10496,3220.7,3220.6,0.23193591]
[1738242094220,3.10464,3221.0,3220.6,0.23193591]
[1738242094423,3.1043,3221.4,3220.7,0.7936]
[1738242094579,3.71277942,3221.6,3221.1,0.7936]
[1738242094917,3.10411,3221.6,3221.1,0.7936]
[1738242095518,3.10411,3221.6,3221.2,0.23193591]
[1738242096621,3.10396,3221.7,3221.2,5.57193591]
[1738242096787,3.10396,3221.7,3221.3,0.23193591]
[1738242097437,5.56285,3222.9,3221.3,0.23193591]
[1738242097438,3.10337,3222.3,3221.5,6.03757376]
[1738242097730,3.10314,3222.6,3222.0,3.10365]
[1738242097926,3.71475698,3222.6,3221.9,0.7801]
[1738242098129,3.10329,3222.4,3221.9,3.88384]
[1738242098485,3.1033,3222.4,3221.9,0.7801]
[1738242098814,3.10354,3222.2,3221.9,0.7801]
[1738242099125,3.10354,3222.2,3222.0,0.03568172]
[1738242100185,0.7568,3222.3,3222.0,0.03568172]
[1738242100431,3.10356,3222.1,3222.0,0.03568172]
[1738242100742,3.10356,3222.1,3221.6,9.20792]
[1738242100893,6.96366,3222.3,3221.6,11.61346538]
[1738242102825,3.86021,3222.3,3221.6,11.61346538]
[1738242103133,3.10357,3222.1,3221.6,6.1039]
[1738242103363,3.10388,3221.8,3221.6,5.34]
[1738242104428,3.10388,3221.8,3221.3,5.34]
[1738242105026,3.1397966,3221.8,3221.3,5.34]
[1738242106189,3.10405,3221.6,3221.3,5.34]
[1738242106595,6.20818,3221.6,3221.0,5.34]
[1738242106901,3.10441,3221.3,3220.9,2.93348376]
[1738242108005,3.1403266,3221.3,3220.9,2.93348376]
[1738242108791,0.0359166,3221.3,3220.9,2.93348376]
[1738242108991,0.0359166,3221.3,3220.9,6.03820376]
[1738242109444,0.0359166,3221.3,3220.9,2.93348376]
[1738242110206,0.0359166,3221.3,3220.9,6.03815376]
[1738242111244,0.0359166,3221.3,3220.9,7.01646867]
[1738242111553,0.0359166,3221.3,3221.1,3.10452]
[1738242112637,0.0359166,3221.3,3221.2,3.43413]
[1738242112823,0.0359166,3221.3,3221.2,6.36761376]
[1738242113238,0.0359166,3221.3,3221.2,6.39865499]
[1738242113442,0.0359166,3221.3,3221.2,12.68897249]
[1738242113643,0.0359166,3221.3,3221.2,12.65793126]
[1738242113840,0.0359166,3221.3,3221.2,13.20793126]
[1738242114040,0.0359166,3221.3,3221.2,13.4388273]
[1738242114246,0.0359166,3221.3,3221.2,22.28417652]
[1738242114555,3.06616225,3222.8,3222.4,0.3297]
[1738242114912,3.10296,3222.8,3222.5,0.03487914]
[1738242115253,3.10296,3222.8,3222.6,0.03484829]
[1738242115406,3.10296,3222.8,3222.3,2.93348376]
[1738242115611,3.10296,3222.8,3222.4,0.03490999]
[1738242116110,3.90962,3222.9,3222.4,0.03490999]
[1738242119155,6.11818,3222.5,3222.4,0.03490999]
[1738242119378,6.87168,3222.5,3222.4,0.03490999]
[1738242119542,3.10352,3222.2,3221.8,5.34]
[1738242119857,3.7685,3222.5,3221.5,5.34]
[1738242119858,7.0311,3221.9,3221.5,5.34]
[1738242120060,3.10395,3221.7,3221.5,5.34]
[1738242120214,3.10404,3221.6,3221.5,5.34]
[1738242120566,3.10395,3221.7,3221.2,5.34]
[1738242121217,3.10422,3221.5,3221.2,5.34]
[1738242121567,3.1045,3221.2,3220.9,5.34]
[1738242121718,3.89301,3221.3,3220.9,5.34]
[1738242121912,3.10449,3221.2,3220.9,5.34]
[1738242122653,3.89301,3221.3,3220.9,5.34]
[1738242123568,0.0075,3221.2,3220.9,5.34]
[1738242123770,3.10454,3221.1,3220.9,5.34]
[1738242124070,3.11199,3221.2,3220.9,5.34]
[1738242124227,0.0075,3221.2,3220.9,5.34]
[1738242124774,0.0075,3221.2,3220.6,0.2504]
[1738242125062,0.0075,3221.2,3220.6,3.35531]
[1738242125271,3.11194,3221.2,3220.6,3.35531]
[1738242128283,3.11194,3221.2,3220.7,0.28885918]
[1738242129081,3.11194,3221.2,3220.8,0.03244527]
[1738242129279,3.11194,3221.2,3220.7,0.28885918]
[1738242129488,3.11194,3221.2,3220.8,0.03244527]
[1738242129694,3.81242,3221.2,3220.7,0.5199369]
[1738242129994,3.11221,3221.0,3220.9,0.28885918]
[1738242130154,3.11971,3221.0,3220.9,0.28885918]
[1738242130335,3.11971,3221.0,3220.9,0.32130307]
[1738242131768,3.11971,3221.0,3220.9,0.03244389]
[1738242132092,0.015,3220.9,3220.6,0.2504]
[1738242132254,3.11972,3220.9,3220.7,0.03252205]
[1738242133287,6.22453,3220.9,3220.7,0.03252205]
[1738242133581,3.10481,3220.8,3220.7,0.03252205]
[1738242133738,0.7886,3221.3,3220.7,0.03252205]
[1738242133739,0.015,3221.0,3220.7,0.03252205]
[1738242133939,3.10473,3220.9,3220.7,0.03252205]
[1738242134807,0.326957,3221.0,3220.7,0.03252205]
[1738242135001,3.0,3221.2,3220.7,0.03252205]
[1738242135209,0.7952,3221.5,3221.0,3.10459]
[1738242135411,3.0,3221.6,3221.0,3.10459]
[1738242135566,3.0,3221.6,3221.1,0.03245098]
[1738242135981,3.0,3221.6,3220.9,8.44465]
[1738242136191,3.0,3221.4,3221.2,0.03240698]
[1738242136392,3.0,3221.4,3220.9,8.44465]
[1738242136896,3.0,3221.4,3221.0,0.03246874]
[1738242137999,3.10417,3221.5,3221.0,0.03246874]
[1738242138706,3.10417,3221.5,3221.0,0.32098377]
[1738242139677,6.20839,3221.5,3221.0,0.32098377]
[1738242140011,0.61486158,3221.7,3221.0,3.42559377]
[1738242140012,3.015,3221.6,3221.0,3.42559377]
[1738242140208,6.11905,3221.6,3221.1,3.1045]
[1738242140392,3.87608,3222.2,3221.5,3.10413]
[1738242140712,3.10337,3222.3,3221.8,0.3297]
[1738242140881,3.10337,3222.3,3221.9,0.03210565]
[1738242141211,0.310337,3222.2,3221.9,0.03210565]
[1738242142297,3.413807,3222.2,3221.8,0.3297]
[1738242142630,3.413807,3222.2,3221.9,0.03210565]
[1738242143127,0.310337,3222.2,3221.9,0.03210565]
[1738242144035,3.7326413,3222.3,3222.0,6.03713376]
[1738242144036,0.6292713,3222.3,3222.0,6.03713376]
[1738242144327,3.10308,3222.6,3222.1,0.03204393]
[1738242144531,3.0,3222.5,3222.1,0.03204393]
[1738242145027,3.1032,3222.5,3222.1,0.03204393]
[1738242145203,3.10327,3222.4,3222.1,0.03204393]
[1738242145617,3.1032,3222.5,3222.1,0.03204393]
[1738242148356,3.88416,3222.2,3222.1,0.03204393]
[1738242148643,6.88416,3222.2,3222.1,0.03204393]
[1738242149093,3.1037,3222.0,3221.4,5.34]
[1738242149299,3.1037,3222.0,3221.5,0.03173419]
[1738242150011,3.1037,3222.0,3221.6,0.28837497]
[1738242150544,3.91867,3222.8,3221.8,0.3297]
[1738242150848,0.8157,3222.8,3222.2,3.10338]
[1738242151048,3.9186,3222.8,3222.2,8.44338]
[1738242151198,3.9186,3222.8,3222.3,0.03155282]
[1738242151401,3.10308,3222.6,3222.3,0.03155282]
[1738242153344,3.11077,3222.4,3222.3,0.03155282]
[1738242154197,6.87377,3222.4,3222.3,0.03155282]
[1738242154607,3.10386,3221.8,3221.2,8.60318376]
[1738242154795,3.10395,3221.7,3221.2,8.60318376]
[1738242155113,3.10395,3221.7,3221.3,0.03175334]
[1738242155296,3.10386,3221.8,3221.3,0.03175334]